Cogmind - Beta 13 @@@ ROGUE MODE // 2024.04.01 @ 01:59:59 Player: Olafz Result: Destroyed by G-34 Mercenary with Small Laser Performance ------------- Evolutions (1) 500 Regions Visited (2) 400 Robots Destroyed (19) 95 Value Destroyed (703) 703 Prototype IDs (1) 20 Alien Tech Used (0) 0 Bonus (0) 0 TOTAL SCORE: 1718 Bonus ------- None Cogmind --------- Core Integrity 0/400 Matter 280/300 Energy 125/125 System Corruption 0% Temperature Warm (177) Movement Treading (160) Location -9/Materials Parts ------- > --- POWER (2) -------- Light Ion Engine Backup Power I > --- PROPULSION (2) --- Light Treads Light Treads > --- UTILITY (3) ------ Structural Scanner Core Shielding Light Armor Plating > --- WEAPON (2) ------- Backup Laser I Advanced Beam Cannon > --- INVENTORY (5) ---- Light Treads Peak State ------------ > --- POWER ------------ Light Ion Engine Backup Power I > --- PROPULSION ------- Light Treads Wheel > --- UTILITY ---------- Cooling System Propulsion Shielding Light Armor Plating > --- WEAPON ----------- Backup Laser I Advanced Beam Cannon > --- INVENTORY -------- Light Treads Wheel Wheel Heat Sink Small Matter Pod [Rating: 12] Favorites ----------- Power Ion Engine Engine Ion Engine Propulsion Light Treads Treads Light Treads Wheel Wheel Utility Terrain Scanner Device Terrain Scanner Storage Small Matter Pod Protection Light Armor Plating Weapon Medium Laser Energy Gun Medium Laser Energy Cannon Advanced Beam Cannon Ballistic Gun Assault Rifle Build | -11 -10 -9 ------- Run | Yrd Mat Mat Slots Evolved 2 | . . 2 Power 1 | . . 1 Propulsion . | . . . Utility 1 | . . 1 Weapon . | . . . Parts Attached 28 | 7 4 17 Power 5 | 2 . 3 Engine 5 | 2 . 3 Core . | . . . Reactor . | . . . Propulsion 8 | 2 2 4 Treads 5 | . 2 3 Leg . | . . . Wheel 3 | 2 . 1 Hover . | . . . Flight . | . . . Utility 8 | 1 2 5 Device 4 | 1 1 2 Storage 1 | . 1 . Processor . | . . . Hackware . | . . . Protection 3 | . . 3 Artifact . | . . . Weapon 7 | 2 . 5 Energy Gun 4 | 1 . 3 Energy Cannon 2 | . . 2 Ballistic Gun 1 | 1 . . Ballistic Cannon . | . . . Launcher . | . . . Special Weapon . | . . . Impact Weapon . | . . . Slashing Weapon . | . . . Piercing Weapon . | . . . Special Melee Weapon . | . . . Unidentified Prototypes 1 | . . 1 Parts Lost 10 | . . 10 Power 3 | . . 3 Propulsion 2 | . . 2 Utility 1 | . . 1 Weapon 4 | . . 4 Highest Loss Streak 4 | . . 4 To Critical Strikes . | . . . Average Slot Usage (%) 68 | . 89 65 Engine 15 | . 14 16 Treads 15 | . 11 15 Wheel 1 | . 15 . Device 9 | . 14 8 Protection 4 | . . 5 Energy Gun 13 | . 14 13 Energy Cannon 4 | . . 4 Ballistic Gun 2 | . 14 . Naked Turns 3 | . . 3 Heaviest Build 15 | 9 10 15 Greatest Support 43 | 20 40 43 Greatest Overweight (x) 3 | . . 3 Average Overweight (x) . | . . . Largest Inventory Capacity 5 | 5 5 5 Average Capacity 5 | 5 5 5 Most Carried 5 | 1 5 5 Average Carried 3 | . 2 4 Final Capacity 5 | 5 5 5 Final Carried 5 | 1 5 1 Class Distribution -------------------- 77% | Mutant 22% | Scavenger-Mutant Dominant Class ---------------- Mutant | -10/Materials Mutant | -9/Materials Resources | -11 -10 -9 ----------- Run | Yrd Mat Mat Matter Collected 517 | 259 . 258 Remotely . | . . . Salvage Created 832 | 34 . 798 Parts 34 | 2 . 32 Haulers Intercepted . | . . . Recyclers Shooed 2 | . . 2 Parts Field Recycled . | . . . Retrieved Matter . | . . . Parts Self-Destructed . | . . . Prevented . | . . . Kills | -11 -10 -9 ------- Run | Yrd Mat Mat Combat Hostiles Destroyed 18 | 1 . 17 Melee 1 | . . 1 Guns 9 | 1 . 8 Cannons 6 | . . 6 Classes Destroyed 4 | 1 . 3 Worker 1 | . . 1 Grunt 10 | 1 . 9 Brawler 2 | . . 2 Sentry 6 | . . 6 Best Kill Streak 6 | 1 . 6 Combat Bots Only 5 | 1 . 5 Max Kills in Single Turn 1 | 1 . 1 Gunslinging . | . . . Exploded . | . . . Melee 1 | . . 1 Uniques/NPCs Destroyed . | . . . Combat | -11 -10 -9 -------- Run | Yrd Mat Mat Hostile Shots Fired 157 | 12 . 145 Missed 42 | 3 . 39 Damage Taken 1466 | 98 . 1368 Core 468 | 66 . 402 Absorbed by Shields . | . . . Redirected to Shielding 4 | . . 4 Core Remaining (%) 73 | 73 73 . Volleys Fired 83 | 9 . 74 Largest 2 | 2 . 2 Hottest 136 | 60 . 136 Shots Fired 147 | 18 . 129 Gun 115 | 18 . 97 Cannon 32 | . . 32 Launcher . | . . . Special . | . . . Kinetic 9 | 9 . . Thermal 138 | 9 . 129 Explosive . | . . . Electromagnetic . | . . . Robot Hit Streak 10 | 8 . 10 Robot Miss Streak 6 | 1 . 6 Penetration Max . | . . . Secondary Targets 2 | . . 2 Max Gunslinging Chain 1 | . . 1 Shots Hit Robots 97 | 16 . 81 Core Hits 33 | 2 . 31 Critical Kills 1 | . . 1 Critical Parts Destroyed . | . . . Critical Strikes 6 | . . 6 Burn 5 | . . 5 Meltdown 1 | . . 1 Melee Attacks . | . . . Impact . | . . . Slashing . | . . . Piercing . | . . . Sneak Attacks . | . . . Combat Hostiles . | . . . Follow-up Attacks . | . . . Damage Inflicted 1326 | 177 . 1149 Guns 902 | 177 . 725 Cannons 407 | . . 407 Explosions . | . . . Melee . | . . . Ramming 17 | . . 17 Kinetic 91 | 91 . . Thermal 1218 | 86 . 1132 Explosive . | . . . Electromagnetic . | . . . Impact . | . . . Slashing . | . . . Piercing . | . . . Highest Corruption . | . . . Average Corruption . | . . . Corruption Purged . | . . . Corruption Blocked . | . . . Overload Shots . | . . . Overflow Damage . | . . . Projectiles . | . . . Explosions . | . . . Melee . | . . . Knockbacks . | . . . Impact . | . . . Kinetic . | . . . Secondary . | . . . Self-Inflicted Damage 3 | . . 3 Shots . | . . . Rammed 5 | . . 5 Targets Rammed 5 | . . 5 Kicked . | . . . Crushed . | . . . Highest Temperature 315 | 54 . 315 Average Temperature 103 | 31 . 109 Received Heat Transfer 627 | 54 . 573 Siege Activations . | . . . Robots Corrupted . | . . . Combat Hostiles . | . . . Parts Fried . | . . . Impact Corruptions . | . . . Robots Melted 2 | . . 2 Combat Hostiles 2 | . . 2 Parts Melted 9 | . . 9 Heat Transferred 3340 | 200 . 3140 Parts Sabotaged . | . . . Parts Stolen . | . . . Parts Stripped . | . . . Power Chain Reactions . | . . . Alert | -11 -10 -9 ------- Run | Yrd Mat Mat Peak Influence 366 | 20 28 366 Initial 13 | . 13 11 Average 116 | 2 17 137 Maximum Alert Level 1 | . . 1 Low Security (%) 70 | 100 100 64 Level 1 29 | . . 35 Level 2 . | . . . Level 3 . | . . . Level 4 . | . . . Level 5 . | . . . High Security . | . . . Max Security . | . . . Squads Dispatched 4 | . 1 3 Investigation 2 | . . 2 Extermination . | . . . Reinforcement 2 | . 1 1 Assault . | . . . Garrison . | . . . Intercept . | . . . Searches Triggered . | . . . Construction Impeded . | . . . Haulers Reinforced . | . . . Active Scanning Responses . | . . . Cargo Convoy Interrupts . | . . . Stealth | -11 -10 -9 --------- Run | Yrd Mat Mat Distress Signals 2 | . . 2 Communications Jammed . | . . . Distress Signals . | . . . Times Spotted 31 | 1 . 30 Peak Tracking Total 9 | 1 1 9 Tactical Retreats . | . . . Traps | -11 -10 -9 ------- Run | Yrd Mat Mat Traps Triggered 2 | . . 2 Indirectly . | . . . Trap Hack Attempts . | . . . Triggered . | . . . Disarmed . | . . . Reprogrammed . | . . . Reused . | . . . Traps Extracted . | . . . Installed . | . . . Triggered . | . . . Machines | -11 -10 -9 ---------- Run | Yrd Mat Mat Machines Disabled 2 | . . 2 Max in Single Turn 1 | . . 1 Machines Repaired . | . . . Machines Dismantled . | . . . Machines Sabotaged . | . . . Overloaded Fab Kills . | . . . Hacking | -11 -10 -9 --------- Run | Yrd Mat Mat Machines Accessed 3 | . 1 2 Terminals 2 | . 1 1 Fabricators . | . . . Repair Stations 1 | . . 1 Recycling Units . | . . . Scanalyzers . | . . . Garrison Access . | . . . Total Hacks 9 | . 4 5 Successful 1 | . . 1 Failed 8 | . 4 4 Catastrophic 2 | . . 2 Database Lockouts . | . . . Manual . | . . . Terminals 7 | . 4 3 Fabricators . | . . . Repair Stations 2 | . . 2 Recycling Units . | . . . Scanalyzers . | . . . Garrison Access . | . . . Terminal Hacks . | . . . Fabricator Hacks . | . . . Repair Station Hacks 1 | . . 1 Refit 1 | . . 1 Recycling Unit Hacks . | . . . Scanalyzer . | . . . Garrison Access Hacks . | . . . Unauthorized Hacks . | . . . Terminals . | . . . Fabricators . | . . . Repair Stations . | . . . Recycling Units . | . . . Scanalyzers . | . . . Garrison Access . | . . . Data Cores Recovered . | . . . Used . | . . . Hacking Detections 3 | . 1 2 Full Trace Events 1 | . . 1 Feedback Events . | . . . Feedback Blocked . | . . . Robot Schematics Acquired . | . . . Robots Built . | . . . Authchips . | . . . Time . | . . . Total Robot Build Rating . | . . . Part Schematics Acquired . | . . . Parts Built . | . . . Authchips . | . . . Time . | . . . Total Part Build Rating . | . . . Parts Repaired . | . . . Time . | . . . Parts Recycled . | . . . Recycled Matter . | . . . Retrieved Matter . | . . . Retrieved Components . | . . . Parts Scanalyzed . | . . . Part Schematics Acquired . | . . . Parts Damaged . | . . . Bothacking | -11 -10 -9 ------------ Run | Yrd Mat Mat Used RIF Installer . | . . . Robots Hacked . | . . . Non-combat . | . . . Combat . | . . . Robot Hacks Applied . | . . . Relay Couplers Released . | . . . Fabnet Peak Effective % . | . . . Robots Rewired . | . . . Allies Hacked . | . . . Hacks Repelled . | . . . Allies | -11 -10 -9 -------- Run | Yrd Mat Mat Total Allies . | . . . Largest Group . | . . . Highest-Rated Group . | . . . Highest-Rated Ally . | . . . Total Orders . | . . . Ally Attacks . | . . . Total Damage . | . . . Kills . | . . . Allies Corrupted . | . . . Allies Melted . | . . . Intel | -11 -10 -9 ------- Run | Yrd Mat Mat Robot Analysis Total . | . . . Derelict Logs Recovered . | . . . Drone Launches . | . . . Drone Recoveries . | . . . Exploration | -11 -10 -9 ------------- Run | Yrd Mat Mat Turns Passed 1164 | 85 107 972 Spaces Moved 689 | 68 98 523 Core 125 | 22 . 103 Treads 414 | . 27 387 Legs . | . . . Wheels 150 | 46 71 33 Hover . | . . . Flight . | . . . Fastest Speed 50 | 50 80 50 Average Speed 127 | 70 102 139 Slowest Speed 200 | 80 160 200 Overloaded Moves . | . . . Propulsion Burnouts . | . . . Robots Hopped . | . . . Cave-ins Triggered . | . . . Exploration Rate (%) 22 | 8 19 39 Regions Visited 2 Branch Regions . Pre-discovered Areas . | . . . Known Exits Taken . | . . . Unknown Exits Taken 2 | 1 1 . Scrap Searched . | . . . Spaces Dug . | . . . Terrain Destroyed . | . . . Melee . | . . . Projectile . | . . . AOE . | . . . Terrain Rammed . | . . . Walls Destroyed . | . . . Machines Disabled . | . . . Actions | -11 -10 -9 --------- Run | Yrd Mat Mat Total 817 | 83 105 629 Wait 1 | . . 1 Move 687 | 67 97 523 Hop . | . . . Pick Up . | . . . Fast Attach 25 | 6 4 15 Attach 1 | . . 1 Detach 4 | . 4 . Swap 2 | 1 . 1 Drop 9 | . . 9 Fire 83 | 9 . 74 Melee . | . . . Ram 2 | . . 2 Kick . | . . . Crush 3 | . . 3 Escape Stasis . | . . . Rewire . | . . . Trap . | . . . Miscellaneous . | . . . Route ------- -11/Scrapyard -10/Materials -9/Materials History --------- Turn | Location | Event 2 | -11/Scrapyard | Met Revision 17 46 | -11/Scrapyard | Discovered new exit (range 8) 86 | -11/Scrapyard | Entered Materials 166 | -10/Materials | Discovered new exit (range 13) 193 | -10/Materials | Entered another Materials area 193 | -9/Materials | Evolved 2 slots: Power x1, Utility x1 301 | -9/Materials | Build established: Mutant 782 | -9/Materials | Lost 4 parts (1p1n2w) 801 | -9/Materials | Core integrity fell below 50% 815 | -9/Materials | Core integrity fell below 20% 1165 | -9/Materials | Destroyed by G-34 Mercenary with Small Laser Last Messages --------------- Attaching: Backup Power I x1 Backup Laser I x1 00935_ Y-45 Defender destroyed. 00944_ Dropped Wheel. 00944_ Dropped Cooling System. 00945_ Dropped Propulsion Shielding. 00947_ Acquired Lgt. Treads. 00950_ Acquired 10 matter. 00998_ Dropped Wheel. 00999_ Dropped Heat Sink. 01000_ Dropped Sml. Matter Pod. 01068_ Triggered Alarm Trap. 01068_ An alarm sounds. 01068_ ALERT: Alarm triggered, dispatching investigation squad. 01076_ Acquired Structural Scanner. 01082_ Acquired Core Shielding. 01099_ U-05 Engineer lays Concrete. 01162_ Material Compactor disabled. Map ----- +----------------------------------------------------+ | ?????# ##############! #??? | | ?????# # ### ##?? | | ?????#######+### """% ### #?? | | ####### # "" %[ #?# #?? | | # ""%[%[ #?# #?? | | +%!%!!" " #?# [ #?? | | # !=] "R" #?# #?? | | ##### # ] """ #?### ###?? | | +??????# # ###?# ##??? | | ???????# #############?# ##??? | | ???????# ## ##?# ##??? | | ???????# ## """ ##?# ##??? | | ???????# ## "T" ##?# ##??? | | ???????# T# ##?# ##??? | | ?????"## ######+###+#### ##??? | | ?????"?# #### ##??? | | ????""?# ##??? | | ? ?? ?# ##??? | | ????#+## #### """ ##??? | | ????# #### """"" ##??? | | ##### ####?## """"" ##??? | | #????## """""ggg##??? | | ##### ######+##????## "" ##??? | | ????#%#???? ???????##k ##??? | | ???## ##???????????## ##??? | | ####% # ?????????### ###@#######??? | | % #???????????## # ####??? | | #### # ??????? ??## # | !] ##????? | | #####+##??"?????????? # [] ##????? | | #? ??????????? # ]] ##????? | | #??????????#?? # ##????? | | #???#???##???#+# ##????? | | #??????? ???? #########????? | | ###+####????? ? ??? #########????? | | ??# #??#????? ?" "????????????????? | | ### #?#?#??"???" ??????????????????? | | ####????"?? ??????????????????? | | ### ##?#???##+##???????#????????? | | ??#### #??????# ########?????????? | | ?#???# ######## # ?? ###????? | | ?#???# # #??????? | | ????## ######## # """"""" #??????? | | ??####+####?#?# # """"""" ######## | | ??# % #????# # """"""" # # | | ??#%""" #????# + """"""" # " # | | ??# """ #?#??# # """"""" # """# | | ?# """ #???## # # """# | | ??# ###### #######+### """# | | ??# """ # # "" # | | ??# """ + + """# | +----------------------------------------------------+ Best States ------------- Heat Dissipation 50 Energy Generation 15 Energy Capacity 400 Matter Stores 300 Matter Capacity 350 Sight Range 16 Terrain Scan Range 14 Terrain Scan Density 10 Armor Coverage 150 Core Shielding 20 Propulsion Shielding 33 Evasion (%) 50 Recoil Reduction 2 Item Schematics ----------------- None Robot Schematics ------------------ None Fabricated ------------ Nothing Alien Tech Used ----------------- None Achievements -------------- Fist Fight Storm Trooper Challenges ------------ None Game ------ Seed BottomlessBottomlessGuard Manual? 0 Play Time 00:11:27 Cumulative 3.0 hours Start 2024.04.01 @ 01:48:48 End 2024.04.01 @ 01:59:59 Sessions 1 Manual Loads 0 Difficulty Rogue Special Mode None Game No. 3 Rogue 1 Adventurer 2 Explorer 0 Win Type - Total 0 Types 0/0/0/0/0/0/0/0/0 Lore% 3 Gallery% 8 Achievement% 8 Wizard Run 0 Options --------- Layout 1 ASCII 0 Keyboard 1 Movement Arrows Keybinds 0 Fullscreen 2 Font 24/Swanston Map View 50x35 Zoom Use 0% Tactical HUD 1 Map Filters NONE Filters NONE Steam 1 RUN: 29c97acb-de78-4bb5-b9f7-3d2f6829ec3d